Cogmind - Beta 11.1 @@@ ROGUE MODE // 2022.05.27 @ 14:47:00 Player: Owlsley Result: Destroyed by G-47 Trooper with Particle Gun Performance ------------- Evolutions (2) 1000 Regions Visited (6) 1200 Robots Destroyed (84) 420 Value Destroyed (2079) 2079 Prototype IDs (4) 80 Alien Tech Used (0) 0 Bonus (32) 32 TOTAL SCORE: 4811 Bonus ------- High Alert Combat Kills 32 Cogmind --------- Core Integrity 0/550 Matter 225/300 Energy 100/125 System Corruption 3% Temperature Hot (234) Movement Hovering (58) Location -8/Materials Parts ------- > --- POWER (1) -------- Light Ion Engine > --- PROPULSION (4) --- Improved Hover Unit Airjet Combat Airjet > --- UTILITY (4) ------ Small Storage Unit Advanced Visual Processing Unit Improved Propulsion Shielding Insulated Plating > --- WEAPON (2) ------- (None) > --- INVENTORY (8) ---- Weight Redist. System Improved Targeting Computer Hardlight Generator Mini Grenade Launcher Great Maul Peak State ------------ > --- POWER ------------ Deuterium Engine > --- PROPULSION ------- Light Treads Light Treads Light Treads Airjet > --- UTILITY ---------- Cooling System High-capacity Storage Unit Advanced Visual Processing Unit Hardlight Generator > --- WEAPON ----------- Advanced Beam Cannon High-powered Shotgun > --- INVENTORY -------- Light Ion Engine Improved Hover Unit Improved Hover Unit Improved Hover Unit Combat Airjet Small Storage Unit Compact Battery Weight Redist. System Structural Scanner Sensor Array Transport Network Coupler Improved Targeting Computer Hardlight Generator Hardlight Generator Hardlight Generator Hardlight Generator Shotgun Mini Grenade Launcher Mini Grenade Launcher Great Maul [Rating: 28] Favorites ----------- Power Ion Engine Engine Ion Engine Propulsion Light Treads Treads Light Treads Leg Aluminum Leg Hover Unit Hover Unit Utility High-capacity Storage Unit Device Shield Generator Storage High-capacity Storage Unit Processor Advanced Visual Processing Unit Protection Light Armor Plating Weapon Advanced Beam Cannon Energy Gun Particle Gun Energy Cannon Advanced Beam Cannon Ballistic Gun Shotgun Special Melee Weapon Datajack Build | -11 -10 -9 -9 -9 -8 -8 ------- Run | Scr Mat Mat Min Exi Min Mat Slots Evolved 4 | . . 2 . . . 2 Power . | . . . . . . . Propulsion 2 | . . 1 . . . 1 Utility 2 | . . 1 . . . 1 Weapon . | . . . . . . . Parts Attached 66 | 2 12 32 . . . 20 Power 8 | . 1 5 . . . 2 Engine 8 | . 1 5 . . . 2 Core . | . . . . . . . Reactor . | . . . . . . . Propulsion 21 | 2 1 9 . . . 9 Treads 14 | 2 1 9 . . . 2 Leg . | . . . . . . . Wheel . | . . . . . . . Hover 7 | . . . . . . 7 Flight . | . . . . . . . Utility 19 | . 3 10 . . . 6 Device 8 | . 1 5 . . . 2 Storage 3 | . 2 . . . . 1 Processor 2 | . . 1 . . . 1 Hackware . | . . . . . . . Protection 6 | . . 4 . . . 2 Artifact . | . . . . . . . Weapon 18 | . 7 8 . . . 3 Energy Gun 5 | . 1 2 . . . 2 Energy Cannon 2 | . . 2 . . . . Ballistic Gun 9 | . 4 4 . . . 1 Ballistic Cannon . | . . . . . . . Launcher . | . . . . . . . Special Weapon . | . . . . . . . Impact Weapon . | . . . . . . . Slashing Weapon . | . . . . . . . Piercing Weapon . | . . . . . . . Special Melee Weapon 2 | . 2 . . . . . Unidentified Prototypes 4 | . . 4 . . . . Parts Lost 17 | . 1 2 . . . 14 Power 2 | . 1 . . . . 1 Propulsion 7 | . . 1 . . . 6 Utility 5 | . . 1 . . . 4 Weapon 3 | . . . . . . 3 Highest Loss Streak 11 | . 1 1 . . . 11 To Critical Strikes . | . . . . . . . Average Slot Usage (%) 97 | . 96 99 100 100 100 90 Engine 11 | . 13 11 11 11 11 8 Treads 30 | . 28 32 33 33 33 24 Device 12 | . 11 10 11 11 11 17 Storage 11 | . 14 11 11 11 11 9 Processor 1 | . . . . . . 5 Protection 6 | . . 10 11 11 11 1 Energy Gun 3 | . 10 1 . . . . Energy Cannon 6 | . . 6 11 11 11 8 Ballistic Gun 13 | . 17 13 11 11 11 8 Naked Turns . | . . . . . . . Heaviest Build 64 | 13 50 62 62 62 62 64 Greatest Support 60 | 40 40 60 60 60 60 60 Greatest Overweight (x) 2 | . 1 1 1 1 1 2 Average Overweight (x) . | . . . 1 1 1 . Largest Inventory Capacity 20 | 8 20 20 20 20 20 20 Average Capacity 19 | 8 16 20 20 20 20 19 Most Carried 20 | 6 19 20 20 20 20 20 Average Carried 17 | 6 12 19 19 20 20 19 Final Capacity 20 | 8 20 20 20 20 20 8 Final Carried 20 | 6 18 20 20 20 20 5 Class Distribution -------------------- 56% | Scavenger-Mutant 43% | Mutant Dominant Class ---------------- Mutant | -10/Materials Scavenger-Mutant | -9/Materials Scavenger-Mutant | -9/Mines Scavenger-Mutant | -9/Exiles Scavenger-Mutant | -8/Mines Mutant | -8/Materials Resources | -11 -10 -9 -9 -9 -8 -8 ----------- Run | Scr Mat Mat Min Exi Min Mat Matter Collected 1496 | 200 244 634 42 . 48 328 Remotely . | . . . . . . . Salvage Created 2949 | 100 668 1352 27 . 113 689 Parts 177 | 5 33 93 . . 2 44 Haulers Intercepted 8 | . 2 5 . . . 1 Recyclers Shooed 7 | . 2 1 1 . 1 2 Parts Field Recycled . | . . . . . . . Retrieved Matter . | . . . . . . . Parts Self-Destructed . | . . . . . . . Prevented . | . . . . . . . Kills | -11 -10 -9 -9 -9 -8 -8 ------- Run | Scr Mat Mat Min Exi Min Mat Combat Hostiles Destroyed 59 | . 10 32 2 . 2 13 Guns 47 | . 10 26 1 . . 10 Cannons 11 | . . 5 1 . 2 3 Classes Destroyed 10 | 2 4 3 1 . . . Worker 5 | . . 2 . . . 3 Tunneler 1 | 1 . . . . . . Hauler 8 | . 2 5 . . . 1 Recycler 3 | 1 1 . . . . 1 Operator 4 | . 1 1 . . . 2 Watcher 6 | . 2 3 . . . 1 Swarmer 17 | . . 14 . . . 3 Grunt 31 | . 10 10 . . 2 9 Sentry 9 | . . 8 . . . 1 Assembled 2 | . . . 2 . . . Best Kill Streak 10 | 2 3 10 1 . 1 7 Combat Bots Only 7 | . 3 7 1 . 1 7 Max Kills in Single Turn 2 | 1 1 2 1 . 1 2 Gunslinging 1 | . . 1 . . . . Exploded . | . . . . . . . Melee . | . . . . . . . Uniques/NPCs Destroyed . | . . . . . . . Combat | -11 -10 -9 -9 -9 -8 -8 -------- Run | Scr Mat Mat Min Exi Min Mat Damage Taken 3742 | . 589 1007 7 . 126 2013 Core 886 | . 216 108 . . . 562 Absorbed by Shields 609 | . . 303 3 . 47 256 Redirected to Shielding 20 | . . . . . . 20 Regen/Repaired (Parts) 96 | . . 96 . . . . Core Remaining (%) 62 | 100 13 . . . 73 . Volleys Fired 224 | 3 57 83 6 . 8 67 Largest 2 | 2 2 2 2 . 2 2 Hottest 93 | 80 85 91 91 . 91 93 Shots Fired 437 | 6 114 162 11 . 16 128 Gun 324 | 6 114 125 5 . 8 66 Cannon 113 | . . 37 6 . 8 62 Launcher . | . . . . . . . Special . | . . . . . . . Kinetic 238 | . 62 101 5 . 8 62 Thermal 188 | 3 44 61 6 . 8 66 Explosive . | . . . . . . . Electromagnetic 11 | 3 8 . . . . . Robot Hit Streak 19 | 4 14 18 19 . 5 11 Robot Miss Streak 4 | . 4 4 4 . 2 4 Penetration Max . | . . . . . . . Secondary Targets 4 | . . 4 . . . . Max Gunslinging Chain 1 | . . 1 . . . . Shots Hit Robots 286 | 4 66 111 5 . 13 87 Core Hits 137 | 3 27 57 3 . 7 40 Critical Kills 3 | . . 2 . . . 1 Critical Parts Destroyed 2 | . 2 . . . . . Critical Strikes 8 | . 4 3 . . . 1 Burn 3 | . 2 1 . . . . Meltdown 1 | . . 1 . . . . Destroy 4 | . 2 1 . . . 1 Melee Attacks . | . . . . . . . Impact . | . . . . . . . Slashing . | . . . . . . . Piercing . | . . . . . . . Sneak Attacks . | . . . . . . . Combat Hostiles . | . . . . . . . Follow-up Attacks . | . . . . . . . Damage Inflicted 5112 | 52 844 1996 111 . 240 1869 Guns 3550 | 52 841 1408 58 . 64 1127 Cannons 1472 | . . 543 41 . 163 725 Explosions . | . . . . . . . Melee . | . . . . . . . Ramming 90 | . 3 45 12 . 13 17 Kinetic 2776 | . 404 1153 58 . 64 1097 Thermal 2128 | 12 359 798 41 . 163 755 Explosive . | . . . . . . . Electromagnetic 118 | 40 78 . . . . . Impact . | . . . . . . . Slashing . | . . . . . . . Piercing . | . . . . . . . Highest Corruption 3 | . . . . . . 3 Average Corruption 2 | . . . . . . 2 Corruption Purged . | . . . . . . . Corruption Blocked . | . . . . . . . Effects 11 | . . . . . . 11 Message Errors 3 | . . . . . . 3 Heat Flow Errors 3 | . . . . . . 3 Energy Discharges 3 | . . . . . . 3 Parts Rejected 1 | . . . . . . 1 Misfires 1 | . . . . . . 1 Overload Shots . | . . . . . . . Overflow Damage 4 | . . 4 . . . . Projectiles 4 | . . 4 . . . . Explosions . | . . . . . . . Melee . | . . . . . . . Knockbacks . | . . . . . . . Impact . | . . . . . . . Kinetic . | . . . . . . . Secondary . | . . . . . . . Self-Inflicted Damage . | . . . . . . . Shots . | . . . . . . . Rammed 11 | . 1 1 2 . 2 5 Targets Rammed 13 | . 1 3 2 . 2 5 Kicked . | . . . . . . . Crushed 2 | . . 2 . . . . Highest Temperature 263 | 54 247 155 204 . 253 263 Average Temperature 65 | 29 68 50 94 . 113 81 Received Heat Transfer 1689 | . 336 240 . . 60 1053 Effects 3 | . 3 . . . . . Interference 3 | . 3 . . . . . Siege Activations . | . . . . . . . Robots Corrupted . | . . . . . . . Combat Hostiles . | . . . . . . . Parts Fried . | . . . . . . . Impact Corruptions . | . . . . . . . Robots Melted 1 | . . 1 . . . . Combat Hostiles 1 | . . 1 . . . . Parts Melted 4 | . . 3 . . . 1 Heat Transferred 4221 | 25 940 1517 74 . 296 1369 Parts Sabotaged . | . . . . . . . Parts Stolen . | . . . . . . . Parts Stripped . | . . . . . . . Power Chain Reactions . | . . . . . . . Missiles Intercepted . | . . . . . . . Alert | -11 -10 -9 -9 -9 -8 -8 ------- Run | Scr Mat Mat Min Exi Min Mat Peak Influence 498 | 10 162 498 43 . 65 317 Initial 43 | . 6 5 43 . . . Average 96 | 8 45 204 21 . 21 89 Maximum Alert Level 2 | . . 2 . . . 1 Low Security (%) 85 | 100 100 64 100 . 100 81 Level 1 8 | . . 16 . . . 18 Level 2 5 | . . 19 . . . . Level 3 . | . . . . . . . Level 4 . | . . . . . . . Level 5 . | . . . . . . . High Security . | . . . . . . . Max Security . | . . . . . . . Squads Dispatched 11 | . 4 4 . . . 3 Investigation 4 | . 3 1 . . . . Extermination . | . . . . . . . Reinforcement 7 | . 1 3 . . . 3 Assault . | . . . . . . . Garrison . | . . . . . . . Intercept . | . . . . . . . Searches Triggered . | . . . . . . . Construction Impeded . | . . . . . . . Haulers Reinforced . | . . . . . . . Active Scanning Responses . | . . . . . . . Cargo Convoy Interrupts . | . . . . . . . Stealth | -11 -10 -9 -9 -9 -8 -8 --------- Run | Scr Mat Mat Min Exi Min Mat Distress Signals 9 | . 1 3 . . . 5 Communications Jammed . | . . . . . . . Distress Signals . | . . . . . . . Times Spotted 107 | . 21 44 2 . 6 34 Peak Tracking Total 11 | . 3 11 1 . 3 9 Tactical Retreats 5 | . 3 1 . . 1 . Traps | -11 -10 -9 -9 -9 -8 -8 ------- Run | Scr Mat Mat Min Exi Min Mat Traps Triggered 4 | . 2 . . . . 2 Indirectly . | . . . . . . . Trap Hack Attempts . | . . . . . . . Triggered . | . . . . . . . Disarmed . | . . . . . . . Reprogrammed . | . . . . . . . Reused . | . . . . . . . Traps Extracted . | . . . . . . . Installed . | . . . . . . . Triggered . | . . . . . . . Machines | -11 -10 -9 -9 -9 -8 -8 ---------- Run | Scr Mat Mat Min Exi Min Mat Machines Disabled 5 | . 2 . . . . 3 Max in Single Turn 1 | . 1 . . . . 1 Machines Sabotaged . | . . . . . . . Garrisons Compromised . | . . . . . . . Overloaded Fab Kills . | . . . . . . . Hacking | -11 -10 -9 -9 -9 -8 -8 --------- Run | Scr Mat Mat Min Exi Min Mat Machines Accessed 21 | . 8 11 . 1 . 1 Terminals 15 | . 6 8 . . . 1 Fabricators . | . . . . . . . Repair Stations 2 | . . 2 . . . . Recycling Units 2 | . 2 . . . . . Scanalyzers 1 | . . 1 . . . . Garrison Access . | . . . . . . . Total Hacks 53 | . 22 26 . 1 . 4 Successful 27 | . 9 16 . 1 . 1 Failed 25 | . 12 10 . . . 3 Catastrophic 5 | . 3 1 . . . 1 Database Lockouts 1 | . 1 . . . . . Manual 19 | . 10 9 . . . . Terminals 39 | . 16 19 . . . 4 Fabricators . | . . . . . . . Repair Stations 4 | . . 4 . . . . Recycling Units 6 | . 6 . . . . . Scanalyzers 3 | . . 3 . . . . Garrison Access . | . . . . . . . Terminal Hacks 18 | . 7 9 . 1 . 1 Record 1 | . . . . 1 . . Part Schematic 1 | . 1 . . . . . Robot Analysis 4 | . 2 2 . . . . Unreport Threat 4 | . . 3 . . . 1 Locate Traps 4 | . 1 3 . . . . Recall Reinforcements 1 | . 1 . . . . . Hauler Manifests 1 | . 1 . . . . . Zone Layout 2 | . 1 1 . . . . Fabricator Hacks . | . . . . . . . Repair Station Hacks 4 | . . 4 . . . . Scan Component 2 | . . 2 . . . . Repair 2 | . . 2 . . . . Recycling Unit Hacks 1 | . 1 . . . . . Retrieve Components 1 | . 1 . . . . . Scanalyzer 2 | . . 2 . . . . Insert Component 1 | . . 1 . . . . Analyze 1 | . . 1 . . . . Garrison Access Hacks . | . . . . . . . Unauthorized Hacks 2 | . 1 1 . . . . Terminals . | . . . . . . . Fabricators . | . . . . . . . Repair Stations . | . . . . . . . Recycling Units 1 | . 1 . . . . . Mask 1 | . 1 . . . . . Scanalyzers 1 | . . 1 . . . . Extract 1 | . . 1 . . . . Garrison Access . | . . . . . . . Data Cores Recovered . | . . . . . . . Used . | . . . . . . . Hacking Detections 17 | . 8 8 . . . 1 Full Trace Events 1 | . 1 . . . . . Feedback Events . | . . . . . . . Feedback Blocked . | . . . . . . . Robot Schematics Acquired . | . . . . . . . Robots Built . | . . . . . . . Authchips . | . . . . . . . Time . | . . . . . . . Total Robot Build Rating . | . . . . . . . Part Schematics Acquired 4 | . 1 3 . . . . Parts Built . | . . . . . . . Authchips . | . . . . . . . Time . | . . . . . . . Total Part Build Rating . | . . . . . . . Parts Repaired 2 | . . 2 . . . . Time 58 | . . 58 . . . . Parts Recycled . | . . . . . . . Recycled Matter . | . . . . . . . Retrieved Matter . | . . . . . . . Retrieved Components . | . . . . . . . Parts Scanalyzed 1 | . . 1 . . . . Part Schematics Acquired 1 | . . 1 . . . . Parts Damaged . | . . . . . . . Bothacking | -11 -10 -9 -9 -9 -8 -8 ------------ Run | Scr Mat Mat Min Exi Min Mat Used RIF Installer . | . . . . . . . Robots Hacked . | . . . . . . . Non-combat . | . . . . . . . Combat . | . . . . . . . Robot Hacks Applied . | . . . . . . . Relay Couplers Released . | . . . . . . . Fabnet Peak Effective % . | . . . . . . . Robots Rewired . | . . . . . . . Allies Hacked . | . . . . . . . Hacks Repelled . | . . . . . . . Allies | -11 -10 -9 -9 -9 -8 -8 -------- Run | Scr Mat Mat Min Exi Min Mat Total Allies . | . . . . . . . Largest Group . | . . . . . . . Highest-Rated Group . | . . . . . . . Highest-Rated Ally . | . . . . . . . Total Orders . | . . . . . . . Ally Attacks . | . . . . . . . Total Damage . | . . . . . . . Kills . | . . . . . . . Allies Corrupted . | . . . . . . . Allies Melted . | . . . . . . . Intel | -11 -10 -9 -9 -9 -8 -8 ------- Run | Scr Mat Mat Min Exi Min Mat Robot Analysis Total 4 | . 2 2 . . . . Derelict Logs Recovered . | . . . . . . . Drone Launches . | . . . . . . . Drone Recoveries . | . . . . . . . Exploration | -11 -10 -9 -9 -9 -8 -8 ------------- Run | Scr Mat Mat Min Exi Min Mat Turns Passed 5967 | 17 1637 1701 786 332 462 1032 Spaces Moved 2175 | 5 663 723 146 139 179 320 Core . | . . . . . . . Treads 2168 | 1 663 723 146 139 179 317 Legs 4 | 4 . . . . . . Wheels . | . . . . . . . Hover 3 | . . . . . . 3 Flight . | . . . . . . . Fastest Speed 58 | 120 160 160 240 240 240 58 Average Speed 207 | 128 208 174 240 240 240 238 Slowest Speed 320 | 160 240 240 240 240 240 320 Overloaded Moves . | . . . . . . . Propulsion Burnouts . | . . . . . . . Robots Hopped . | . . . . . . . Cave-ins Triggered . | . . . . . . . Exploration Rate (%) 47 | 3 89 62 33 53 60 35 Regions Visited 6 Branch Regions 3 Pre-discovered Areas 1 | . . . . 1 . . Known Exits Taken . | . . . . . . . Unknown Exits Taken 6 | 1 1 1 1 1 1 . Scrap Searched 1 | . . . . . 1 . Spaces Dug . | . . . . . . . Terrain Destroyed . | . . . . . . . Melee . | . . . . . . . Projectile . | . . . . . . . AOE . | . . . . . . . Terrain Rammed . | . . . . . . . Walls Destroyed . | . . . . . . . Machines Disabled . | . . . . . . . Actions | -11 -10 -9 -9 -9 -8 -8 --------- Run | Scr Mat Mat Min Exi Min Mat Total 3188 | 9 809 1014 569 138 194 455 Wait 595 | . 55 98 413 . 6 23 Move 2169 | 4 662 722 145 138 178 320 Hop . | . . . . . . . Pick Up 56 | . 16 30 1 . . 9 Fast Attach 26 | . 2 16 . . . 8 Attach 15 | . 2 4 . . . 9 Detach 1 | . 1 . . . . . Swap 25 | 2 8 12 . . . 3 Drop 63 | . 5 46 1 . . 11 Fire 224 | 3 57 83 6 . 8 67 Melee . | . . . . . . . Ram . | . . . . . . . Kick . | . . . . . . . Crush 13 | . 1 3 2 . 2 5 Escape Stasis . | . . . . . . . Rewire 1 | . . . 1 . . . Trap . | . . . . . . . Miscellaneous . | . . . . . . . Route ------- -11/Scrapyard -10/Materials (discovered 4 exits: *Mat x3 / [*Min]) -9/Materials (discovered 3 exits: *Mat / [*Min x2]) -9/Mines (discovered 2 exits: *Mat / *Exi) -9/Exiles -8/Mines -8/Materials History --------- Turn | Location | Event 11 | -11/Scrapyard | Discovered new exit (range 3) 18 | -11/Scrapyard | Entered Materials 312 | -10/Materials | Build established: Mutant 616 | -10/Materials | Core integrity fell below 50% 649 | -10/Materials | Discovered new exit (range 9) 793 | -10/Materials | Central database locked down 872 | -10/Materials | Discovered new exit (range 10) 1320 | -10/Materials | Discovered new exit (range 5) 1363 | -10/Materials | Discovered new exit (range 14) 1430 | -10/Materials | Core integrity fell below 20% 1655 | -10/Materials | Entered another Materials area 1655 | -9/Materials | Evolved 2 slots: Propulsion x1, Utility x1 2170 | -9/Materials | Build established: Scavenger-Mutant 2281 | -9/Materials | Destroyed 7 combat bots 2694 | -9/Materials | Discovered new exit (range 7) 2766 | -9/Materials | Discovered new exit (range 11) 2971 | -9/Materials | Repaired Shield Generator 3118 | -9/Materials | Discovered new exit (range 16) 3261 | -9/Materials | Repaired Lgt. Armor Plating 3356 | -9/Materials | Entered Mines 3372 | -9/Mines | Assembled infested the area 3383 | -9/Mines | Discovered new exit (range 13) 4132 | -9/Mines | Deemed a non-threat by the Exiles lab entrance 4132 | -9/Mines | Discovered new exit (range 5) 4142 | -9/Mines | Entered Exiles 4198 | -9/Exiles | Met 8R-AWN 4241 | -9/Exiles | Met EX-HEX 4310 | -9/Exiles | Met EX-BIN 4349 | -9/Exiles | Met EX-DEC 4378 | -9/Exiles | Learned location of Zion (-7) 4452 | -9/Exiles | Discovered new exit (range 10) 4474 | -9/Exiles | Entered Mines 4857 | -8/Mines | Discovered new exit (range 13) 4936 | -8/Mines | Entered Materials 4936 | -8/Materials | Evolved 2 slots: Propulsion x1, Utility x1 5161 | -8/Materials | Destroyed 7 combat bots 5164 | -8/Materials | Lost 3 parts (1n2u) 5418 | -8/Materials | Build established: Mutant 5950 | -8/Materials | Core integrity fell below 50% 5960 | -8/Materials | Core integrity fell below 20% 5968 | -8/Materials | Destroyed by G-47 Trooper with Particle Gun Last Messages --------------- 05935_ Acquired 20 matter. 05936_ U-05 Engineer builds a Door. 05937_ Deuterium Engine destroyed. 05937_ Critical hit (Burn: +37). 05939_ Lgt. Treads destroyed. 05940_ Hpw. Shotgun destroyed. 05945_ Imp. Hover Unit destroyed. 05947_ Slammed into G-47 Trooper. 05947_ Lgt. Treads destroyed. 05953_ Particle Gun destroyed. 05956_ System corrupted: Heat flow error (+264). 05957_ R-06 Scavenger collects Imp. Hover Unit. 05961_ Dropped Com. Battery. 05962_ Extracted 113 energy. 05963_ Acquired Com. Battery. 05964_ R-06 Scavenger collects Hardlight Generator. 05965_ Dropped Hcp. Storage Unit. 05965_ Imp. Hover Unit destroyed. 05966_ Acquired Sml. Storage Unit. 05967_ R-06 Scavenger collects Com. Battery. Map ----- +----------------------------------------------------+ | ?########?????????? ##???????????????????????????? | | ??????????????????? ???????????????????????????? | | ??????????????????? ???????????????????????????? | | ??????????????????? ???????????????????????????? | | ??????????????????# #??????????????????????????? | | ??????????????????# #??????????????????????????? | | ??????????????????# #??????????????????????????? | | ??????????????????# ###????????????????????????? | | ??????????????????# # *????????????????????????? | | ??????????????????# # ????????????????????????? | | #####?????????????# # !????????????????????????? | | ???????+ + ????????????????????????? | | ######????????????# # !????????????????????????? | | ??????????????????# # ????????????????????????? | | ####??###########?# ##+#???????????????????????? | | #??# ! [#?# ## #???????????????????????? | | #### #?# !##g#???????????????????????? | | " + + #?#% *## #???????????????????????? | | " =#### #?# ## #???????????????????????? | | " #??#####+#####?# ##g###?????????????????????? | | #??????# #?????# ##/# ######????????????????? | | ####??????# #?????# # !== #????????????????? | | ??????????# ####### =# != #????????????????? | | ??????????# %#!== #########????????? | | ??????????# #### #g* * /k ???????? | | ??????????# #??# g/! @ #????????????????? | | ???????? #??# r#g]! """ #????????????????? | | ???????####### #??# !#!! """ #????????????????? | | ?????????????# #??# # """ #????????????????? | | ?????????????#+#??# ###########????????????????? | | ??????????????????# #??????????????????????????? | | ??????????????????# #??????????????????????????? | | ??????????????????+ #??????????????????????????? | | ????????????????? # #??????????????????????????? | | ????????????????? # #??????????????????????????? | | ???????????????? ?# #??????????????????????????? | | ????????????????#?# #??????????????????????????? | | ??????????????????# #??????????????????????????? | | ??????????????????# #??????????????????????????? | | ??????????????????# +??????????????????????????? | | ??????????????????# #??????????????????????????? | | ??????????????????# ???????????????????????????? | | ??????????????????# ???????????????????????????? | | ?????????????????? ???????????????????????????? | | ?????????????????? ???????????????????????????? | | ?????????????????? ???????????????????????????? | | ??????????????????? ???????????????????????????? | | ?????????????????????????????????????????????????? | | ?????????????????????????????????????????????????? | | ?????????????????????????????????????????????????? | +----------------------------------------------------+ Best States ------------- Heat Dissipation 53 Energy Generation 14 Energy Capacity 280 Matter Stores 300 Matter Capacity 300 Sight Range 20 Terrain Scan Density 10 Armor Coverage 150 Evasion (%) 40 Targeting Accuracy 5 Recoil Reduction 3 Item Schematics ----------------- Sml. Storage Unit | -10/Materials | Hacked Imp. Hover Unit | -9/Materials | Scanalyzed Lgt. Cannon | -9/Materials | Extracted Lrg. Storage Unit | -9/Materials | Extracted Robot Schematics ------------------ None Fabricated ------------ Nothing Alien Tech Used ----------------- None Achievements -------------- None Challenges ------------ None Game ------ Seed DamperOmegaCutter Manual? 0 Play Time 00:28:06 Cumulative 315.6 hours Start 2022.05.27 @ 14:18:14 End 2022.05.27 @ 14:47:00 Sessions 1 Manual Loads 0 Difficulty Rogue Special Mode None Game No. 229 Rogue 201 Adventurer 10 Explorer 18 Win Type - Total 40 Types 17/1/3/10/2/0/3/1/3 Lore% 81 Gallery% 87 Achievement% 76 Wizard Run 0 Options --------- ASCII 0 Keyboard 0 Movement Mouse Keybinds 0 Fullscreen 1 Font 18/SmallcapsGlow Map View 76x50 Tactical HUD 1 Map Filters NONE Filters NONE Steam 1 RUN: 1051dbd1-56d9-4971-92fd-04af7fdcc116